fUSD/lending_fUSD_20240708
["ID","MTS","AMOUNT","RATE_DAILY","PERIOD"]
[331437100,1720405843362,-582.57934699,0.00013667,2]
[331437102,1720405843371,-322.67489827,0.00013667,2]
[331437104,1720405843380,-1000.0,0.00013698,5]
[331437106,1720405843390,-1102.48349703,0.00013698,5]
[331437108,1720405843399,-1500.0,0.00013699,5]
[331437110,1720405843409,-200.0,0.00013699,2]
[331437112,1720405843418,-250.0,0.00013699,2]
[331437114,1720405843429,-3108.7,0.00013699,2]
[331437116,1720405843438,-2423.84,0.00013699,2]
[331437118,1720405843447,-203.0,0.0001372,2]
[331437120,1720405843456,-12777.11077048,0.00013736,2]
[331437121,1720405843466,-462.12662794,0.00013802,2]
[331437122,1720405843475,-1673.69935171,0.00013867,2]
[331437123,1720405843484,-500.0,0.00013887,2]
[331437124,1720405843494,-200.0,0.00013887,2]
[331437125,1720405843503,-500.0,0.00013888,2]
[331437126,1720405843512,-500.0,0.00013888,2]
[331437127,1720405843525,-200.0,0.00013888,2]
[331437128,1720405843535,-208.6813478,0.00013889,2]
[331437129,1720405843546,-3768.03030137,0.000139,2]
[331437130,1720405843554,-165.31408527,0.000139,2]
[331437131,1720405843565,-166.60509873,0.000139,2]
[331437132,1720405843574,-5758.20953966,0.000139,2]
[331437133,1720405843583,-582.57934699,0.00013914,2]
[331437134,1720405843592,-322.67489827,0.00013914,2]
[331437135,1720405843603,-1040.25469347,0.00013964,2]
[331437136,1720405843613,-159.1426119,0.00013964,2]
[331437137,1720405843623,-700.0,0.0001397,2]
[331437138,1720405843632,-700.0,0.0001397,2]
[331437139,1720405843641,-786.1618607,0.0001397,2]
[331437140,1720405843650,-879.56672502,0.0001397,2]
[331437141,1720405843659,-2000.0,0.00013973,3]
[331437142,1720405843668,-500.2278121,0.00013999,2]
[331437143,1720405843680,-500.0,0.00013999,2]
[331437144,1720405843689,-500.0,0.00013999,2]
[331437145,1720405843698,-355.95640784,0.00013999,2]
[331437146,1720405843707,-500.0,0.00013999,2]
[331437147,1720405843716,-500.0,0.00013999,2]
[331437148,1720405843726,-500.0,0.00013999,2]
[331437149,1720405843735,-192.18758284,0.00013999,2]
[331437150,1720405843744,-500.0,0.00013999,2]
[331437151,1720405843754,-237.44016728,0.00013999,2]
[331437152,1720405843763,-500.0,0.00013999,2]
[331437153,1720405843772,-500.0,0.00013999,2]
[331437154,1720405843782,-500.0,0.00013999,2]
[331437155,1720405843791,-500.0,0.00013999,2]
[331437156,1720405843800,-500.0,0.00013999,2]
[331437158,1720405843809,-500.0,0.00013999,2]
[331437159,1720405843819,-354.90600375,0.00013999,2]
[331437160,1720405843828,-500.0,0.00013999,2]
[331437161,1720405843837,-978.0,0.00014,2]
[331437162,1720405843846,-256383.31342023,0.00014,2]
[331437163,1720405843859,-732.587679,0.00014,2]
[331437164,1720405843871,-1125.9837085,0.00014,2]
[331437165,1720405844490,-7676.09601652,0.00014,2]
[331437166,1720405844501,-1419.8286863,0.00014,2]
[331437167,1720405844512,-2925.0,0.00014,2]
[331437177,1720405846103,-5464.03947139,0.00012568,2]
[331437178,1720405846114,-4535.96052861,0.00012568,2]
[331437179,1720405846123,-155.0,0.00013989,2]
[331437180,1720405846132,-8022.78,0.00014,2]
[331437181,1720405929891,25000.0,0.00011958,120]
[331437196,1720406390748,433.51,0.00010155,2]
[331437197,1720406550497,390.0,0.00027,120]
[331437198,1720406570417,279.15964286,0.00011199,2]
[331437199,1720406627196,3662.40681004,0.00011199,2]
[331437200,1720406670450,258.94577765,0.00011199,2]
[331437201,1720406679036,155.0089881,0.00011199,2]
[331437202,1720406717944,360.95511589,0.00011199,2]
[331437205,1720406818866,899.14507577,0.00011199,2]
[331437208,1720406919017,-250.0,0.00011695,2]
[331437209,1720406919046,-1262.16826599,0.00011774,2]
[331437210,1720406919072,-185.74,0.00011874,2]
[331437211,1720406919096,-1000.0,0.00011875,2]
[331437212,1720406919121,-167.07,0.0001189,2]
[331437213,1720406919144,-157.112669,0.00011958,2]
[331437214,1720406919168,-12451.17,0.00012024,2]
[331437215,1720406919193,-500.0,0.00012029,2]
[331437216,1720406919217,-167.07,0.00012045,2]
[331437217,1720406919246,-250.0,0.00012069,2]
[331437218,1720406919271,-167.07,0.000122,2]
[331437219,1720406919294,-150.0,0.00012247,2]
[331437220,1720406919316,-499.99,0.00012309,2]
[331437221,1720406919338,-826.46,0.00012309,2]
[331437222,1720406919362,-167.07,0.00012355,2]
[331437223,1720406919387,-433.51,0.00012419,2]
[331437224,1720406919409,-150.99,0.00012419,2]
[331437225,1720406919431,-499.99,0.00012419,2]
[331437226,1720406919454,-435.31,0.00012472,2]
[331437227,1720406919476,-3313.1237921,0.00012488,2]
[331437228,1720406919500,-116466.0,0.00012497,2]
[331437229,1720406919523,-167.07,0.0001251,2]
[331437230,1720406919545,-157.112669,0.00012556,2]
[331437231,1720406919567,-1294.9789888,0.00012568,2]
[331437232,1720406919589,-1416.75953191,0.00012568,2]
[331437233,1720406919611,-150.0,0.000126,2]
[331437234,1720406919636,-177.51,0.00012778,2]
[331437235,1720406919658,-172.3657,0.0001278,2]
[331437236,1720406919679,-1000.0,0.0001278,2]
[331437237,1720406919703,-232.06592917,0.00012787,2]
[331437238,1720406919724,-322.67489827,0.000128,2]
[331437239,1720406919747,-407.95457193,0.000128,2]
[331437240,1720406919770,-190.1019261,0.0001287,2]
[331437241,1720406919792,-1003.21831176,0.00012879,2]
[331437242,1720406919814,-1673.69935171,0.00012879,2]
[331437243,1720406919837,-1318.47881185,0.00012879,3]
[331437244,1720406919860,-616816.16458241,0.0001288,2]
[331437277,1720406963378,431.95,0.00010534,2]
[331437278,1720406986631,1774.57204574,0.00011199,2]
[331437288,1720407032635,-277.26048315,0.00012314,2]
[331437290,1720407032644,-167.47,0.00012354,2]
[331437291,1720407032659,-246.66098453,0.00012398,2]
[331437292,1720407032670,-272.89181547,0.00012398,2]
[331437293,1720407032680,-500.0,0.00012453,2]
[331437294,1720407032690,-2670.14,0.00012457,2]
[331437295,1720407032699,-1756.57805892,0.00012622,2]
[331437296,1720407032709,-431.95,0.00012798,2]
[331437298,1720407032718,-169.90376504,0.0001288,2]
[331437306,1720407032882,-416.31945366,0.0001288,2]
[331437307,1720407032892,-602.54108375,0.00012946,2]
[331437308,1720407032902,-300.0,0.00012996,2]
[331437309,1720407032911,-6728.68368012,0.00012997,2]
[331437310,1720407033963,-450.47580025,0.00012997,2]
[331437311,1720407033977,-8504.75381416,0.00012997,2]
[331437312,1720407033990,-89202.79770293,0.00012997,2]
[331437313,1720407034001,-185.23393,0.00013014,2]
[331437314,1720407034015,-150.797683,0.00013014,2]
[331437315,1720407034026,-200.16708,0.00013014,2]
[331437316,1720407034036,-279.914449,0.00013014,2]
[331437317,1720407034047,-175.341085,0.00013014,2]
[331437318,1720407034058,-177.367034,0.00013014,2]
[331437319,1720407034069,-2723.246355,0.00013014,2]
[331437320,1720407034080,-3342.303713,0.00013014,2]
[331437321,1720407034091,-7481.791164,0.00013014,2]
[331437322,1720407034104,-3644.530793,0.00013014,2]
[331437323,1720407034115,-177.367032,0.00013014,2]
[331437324,1720407034126,-1671.151857,0.00013014,2]
[331437325,1720407034137,-602.54108375,0.00013105,2]
[331437326,1720407034148,-392.8511,0.00013115,2]
[331437327,1720407034158,-3265.61557383,0.00013174,2]
[331437328,1720407034172,-500.0,0.00013174,2]
[331437329,1720407034185,-2144.45724868,0.00013174,2]
[331437330,1720407034198,-1079.82897878,0.00013174,2]
[331437331,1720407034212,-535.511,0.00013174,2]
[331437332,1720407034226,-478.59396333,0.00013174,2]
[331437333,1720407034240,-2468.42793538,0.00013174,2]
[331437334,1720407034251,-3412.48995921,0.00013174,2]
[331437335,1720407034265,-1527.63577215,0.00013174,2]
[331437336,1720407034279,-479.84771151,0.00013174,2]
[331437337,1720407034292,-1524.10623217,0.00013174,2]
[331437342,1720407037956,-15859.54,0.00013174,2]
[331437345,1720407037971,-490.03837367,0.00013174,2]
[331437350,1720407038215,-504.83275715,0.00013174,2]
[331437351,1720407038229,-6479.82069414,0.00013174,2]
[331437352,1720407038240,-200.16708,0.00013177,2]
[331437353,1720407038251,-2723.246355,0.00013177,2]
[331437354,1720407038262,-852.76587087,0.00013177,2]
[331437355,1720407038274,-2489.53784213,0.00013177,2]
[331437356,1720407038285,-7481.791164,0.00013177,2]
[331437357,1720407038296,-3644.530793,0.00013177,2]
[331437358,1720407038306,-1671.151857,0.00013177,2]
[331437359,1720407038316,-166.5468764,0.0001324,2]
[331437360,1720407038327,-602.54108375,0.00013264,2]
[331437361,1720407038337,-284.994,0.00013315,2]
[331437362,1720407038347,-306.508,0.00013315,2]
[331437363,1720407038360,-1251.0,0.00013315,2]
[331437364,1720407038371,-619.0,0.00013315,2]
[331437365,1720407038382,-450.105,0.00013315,2]
[331437366,1720407038395,-819.808,0.00013315,2]
[331437367,1720407038405,-166.918,0.00013315,2]
[331437368,1720407038418,-1299.31,0.00013315,2]
[331437369,1720407038429,-1800.24,0.00013315,2]
[331437370,1720407038439,-152.73,0.00013315,2]
[331437371,1720407038450,-291.0,0.00013315,2]
[331437373,1720407038460,-320.61327494,0.00013315,2]
[331437375,1720407038473,-514.45284918,0.00013315,2]
[331437377,1720407038485,-4343.93387588,0.00013315,2]
[331437380,1720407038496,-5814.0,0.00013315,2]
[331437382,1720407038506,-1199.0,0.00013315,2]
[331437384,1720407038517,-14362.713,0.00013315,2]
[331437386,1720407038527,-1670.867,0.00013315,2]
[331437388,1720407038537,-151.477,0.00013315,2]
[331437390,1720407038548,-150.166,0.00013315,2]
[331437392,1720407038559,-1071.0,0.00013315,2]
[331437394,1720407038570,-200.16708,0.0001334,2]
[331437396,1720407038580,-2723.246355,0.0001334,2]
[331437398,1720407038591,-3342.303713,0.0001334,2]
[331437401,1720407038602,-7481.791164,0.0001334,2]
[331437403,1720407038613,-3644.530793,0.0001334,2]
[331437405,1720407038624,-1671.151857,0.0001334,2]
[331437407,1720407038634,-1000.0,0.00013359,2]
[331437409,1720407038644,-602.54108375,0.00013423,2]
[331437541,1720407038655,-348.14003492,0.00013472,2]
[331437545,1720407039985,-200.16708,0.00013503,2]
[331437549,1720407040013,-2723.246355,0.00013503,2]
[331437551,1720407040048,-3342.303713,0.00013503,2]
[331437552,1720407040067,-7481.791164,0.00013503,2]
[331437553,1720407040077,-1671.151857,0.00013503,2]
[331437554,1720407040087,-3644.530793,0.00013503,2]
[331437555,1720407040097,-298.21104625,0.00013516,2]
[331437556,1720407040106,-293.03946391,0.00013516,2]
[331437558,1720407040119,-1600.0,0.00013559,2]
[331437560,1720407040129,-185.65274336,0.00013565,2]
[331437562,1720407040140,-689.37361218,0.00013574,2]
[331437564,1720407040150,-602.54108375,0.00013582,2]
[331437566,1720407040160,-185.65274333,0.00013649,2]
[331437568,1720407040172,-166.54687639,0.00013655,2]
[331437570,1720407040182,-185.23393,0.00013665,2]
[331437572,1720407040192,-150.797683,0.00013665,2]
[331437574,1720407040202,-200.16708,0.00013665,2]
[331437576,1720407040212,-2723.246355,0.00013665,2]
[331437578,1720407040222,-3342.303713,0.00013665,2]
[331437580,1720407040232,-7481.791164,0.00013665,2]
[331437582,1720407040242,-177.367032,0.00013665,2]
[331437584,1720407040251,-1671.151857,0.00013665,2]
[331437586,1720407040262,-3644.530793,0.00013665,2]
[331437588,1720407040271,-1000.0,0.00013698,5]
[331437590,1720407040281,-1102.48349703,0.00013698,5]
[331437592,1720407040291,-2423.84,0.00013699,2]
[331437594,1720407040300,-200.0,0.00013699,2]
[331437596,1720407040311,-250.0,0.00013699,2]
[331437598,1720407040321,-3108.7,0.00013699,2]
[331437600,1720407040330,-1500.0,0.00013699,5]
[331437602,1720407040339,-203.0,0.0001373,2]
[331437604,1720407040349,-185.65274333,0.00013733,2]
[331437606,1720407040363,-12777.11077048,0.00013736,2]
[331437608,1720407040373,-602.54108375,0.00013741,2]
[331437610,1720407040383,-975.0,0.00013758,2]
[331437613,1720407040393,-756.45013928,0.00013759,2]
[331437615,1720407040403,-488.776,0.0001376,2]
[331437617,1720407040412,-185.65274333,0.00013816,2]
[331437619,1720407040422,-724.45285738,0.00013849,2]
[331437621,1720407040431,-385.96925274,0.00013849,2]
[331437623,1720407040441,-185.74,0.00013853,2]
[331437625,1720407040451,-5800.0,0.00013875,2]
[331437627,1720407040461,-150.0,0.00013879,2]
[331437629,1720407040471,-5800.0,0.00013883,2]
[331437631,1720407040481,-200.0,0.00013888,2]
[331437633,1720407040490,-5800.0,0.00013891,2]
[331437635,1720407040499,-203.62913832,0.00013899,2]
[331437637,1720407040509,-439.31997462,0.00013899,2]
[331437639,1720407040518,-164.17812064,0.00013899,2]
[331437641,1720407040528,-348.14886787,0.00013899,2]
[331437643,1720407040538,-25000.0,0.000139,2]
[331437645,1720407040547,-1000.0,0.000139,2]
[331437647,1720407040557,-174.6495878,0.000139,2]
[331437649,1720407040566,-39775.6741,0.000139,2]
[331437651,1720407040576,-3768.03030137,0.000139,2]
[331437653,1720407040585,-5800.0,0.000139,2]
[331437655,1720407040596,-192.81794387,0.000139,2]
[331437657,1720407040605,-602.54108375,0.000139,2]
[331437659,1720407040616,-180.26029562,0.000139,2]
[331437661,1720407040626,-5758.20953966,0.000139,2]
[331437663,1720407040636,-185.65274333,0.000139,2]
[331437665,1720407040645,-159.1426119,0.00013964,2]
[331437667,1720407040655,-1040.25469347,0.00013964,2]
[331437669,1720407040665,-786.1618607,0.0001397,2]
[331437671,1720407040674,-700.0,0.0001397,2]
[331437673,1720407040683,-700.0,0.0001397,2]
[331437675,1720407040692,-879.56672502,0.0001397,2]
[331437676,1720407040702,-1530.479619,0.00013973,2]
[331437677,1720407040712,-2000.0,0.00013973,3]
[331437678,1720407040722,-133156.6829821,0.00013989,2]
[331437679,1720407040731,-10419.4918622,0.00013989,2]
[331437680,1720407040741,-368.13947563,0.00013989,2]
[331437681,1720407040751,-12905.3657878,0.00013989,2]
[331437682,1720407040760,-421.19172156,0.00013989,2]
[331437683,1720407040769,-265.21676105,0.00013989,2]
[331437684,1720407040779,-190.10192611,0.0001399,2]
[331437685,1720407040788,-931.01813762,0.00013999,2]
[331437686,1720407040798,-2221.82335868,0.00013999,2]
[331437687,1720407040807,-462.12662794,0.00013999,2]
[331437688,1720407040817,-355.95640784,0.00013999,2]
[331437689,1720407040827,-500.0,0.00013999,2]
[331437690,1720407040837,-496.90910313,0.00013999,2]
[331437691,1720407040847,-260.81687492,0.00013999,2]
[331437692,1720407040856,-610.40868593,0.00013999,2]
[331437693,1720407040868,-500.0,0.00013999,2]
[331437694,1720407040879,-500.0,0.00013999,2]
[331437695,1720407040888,-500.0,0.00013999,2]
[331437696,1720407040897,-500.0,0.00013999,2]
[331437697,1720407040907,-536.8973548,0.00013999,2]
[331437698,1720407040917,-500.0,0.00013999,2]
[331437699,1720407040926,-500.0,0.00013999,2]
[331437700,1720407040941,-500.0,0.00013999,2]
[331437701,1720407040951,-500.0,0.00013999,2]
[331437702,1720407040961,-500.0,0.00013999,2]
[331437703,1720407040973,-500.0,0.00013999,2]
[331437704,1720407040983,-500.0,0.00013999,2]
[331437705,1720407040992,-389.17741841,0.00013999,2]
[331437706,1720407041002,-500.0,0.00013999,2]
[331437707,1720407041014,-500.0,0.00013999,2]
[331437708,1720407041024,-500.0,0.00013999,2]
[331437709,1720407041033,-500.0,0.00013999,2]
[331437710,1720407041042,-500.0,0.00013999,2]
[331437711,1720407041051,-500.0,0.00013999,2]
[331437712,1720407041060,-500.0,0.00013999,2]
[331437713,1720407041070,-500.0,0.00013999,2]
[331437714,1720407041079,-500.0,0.00013999,2]
[331437715,1720407041089,-9038.0,0.00014,2]
[331437716,1720407041098,-263811.12625838,0.00014,2]
[331437717,1720407041108,-150477.59542094,0.00014,2]
[331437718,1720407041124,-591.89862805,0.00014,2]
[331437719,1720407041201,-658.090015,0.00014,2]
[331437720,1720407041289,-0.63259507,0.00014,2]
[331437721,1720407041301,-813.78799327,0.00014,2]
[331437722,1720407041313,-1054.63329998,0.00014,2]
[331437723,1720407041342,-354189.12526064,0.00014,2]
[331437724,1720407041352,-155.0,0.00014,2]
[331437725,1720407041362,-919206.88960655,0.00014,2]
[331437726,1720407041372,-220297.29086121,0.00014,2]
[331437727,1720407041381,-754545.84089195,0.00014,2]
[331437728,1720407041390,-296702.79943601,0.00014,2]
[331437729,1720407041400,-200.0,0.00014,2]
[331437730,1720407041410,-3116112.270241,0.00014,2]
[331437731,1720407041421,-121440.66108605,0.00014,2]
[331437732,1720407041432,-277.785,0.00014,2]
[331437733,1720407041443,-2550.50257882,0.00014,2]
[331437734,1720407041454,-55197.82731886,0.00014,2]
[331437735,1720407041465,-645.93668999,0.00014,2]
[331437736,1720407041476,-770.69333021,0.00014,2]
[331437766,1720407043258,-465.50906881,0.00013999,2]
[331437768,1720407043267,-243.01607435,0.00014,2]
[331437770,1720407043278,-1686.43991332,0.00014,2]
[331437772,1720407043290,-554.12288482,0.00014,2]
[331437774,1720407043301,-47644.43898807,0.00014,2]
[331437776,1720407043313,-360810.89745103,0.00014,2]
[331437778,1720407043323,-139761.73406882,0.00014,2]
[331437780,1720407043336,-415.001,0.00014,2]
[331437783,1720407043347,-469.90999999,0.00014,2]
[331437807,1720407043953,-2759.5004898,0.00014,2]
[331437809,1720407045110,-537.16417105,0.00014,2]
[331437849,1720407047811,-500.0,0.00013999,2]
[331437850,1720407047821,-500.0,0.00013999,2]
[331437851,1720407047831,-500.0,0.00013999,2]
[331437852,1720407047841,-500.0,0.00013999,2]
[331437853,1720407047851,-192.18758284,0.00013999,2]
[331437854,1720407047861,-500.0,0.00013999,2]
[331437855,1720407047873,-500.0,0.00013999,2]
[331437856,1720407047882,-16.81241715,0.00013999,2]
[331437857,1720407047894,-215.94211726,0.00013999,2]
[331437858,1720407047904,-296.57788274,0.00014,2]
[331437859,1720407047917,-35360.87399905,0.00014,2]
[331437860,1720407047929,-400.57,0.00014,2]
[331437861,1720407047946,-759.89924993,0.00014,2]
[331437862,1720407047957,-877.72825,0.00014,2]
[331437863,1720407048159,-170.76637275,0.00013999,2]
[331437864,1720407048168,-3427.75424295,0.00014,2]
[331437865,1720407048179,-1614.12909699,0.00014,2]
[331437866,1720407048190,-14348.49731391,0.00014,2]
[331437884,1720407368800,2221.82335967,0.00014,30]
[331437886,1720407409162,459.78860943,0.00011199,2]
[331437887,1720407427905,541.57461131,0.00011199,2]
[331437888,1720407510902,400.19,0.00010875,2]
[331437889,1720407514664,35637.52732064,0.00011199,2]
[331437892,1720407818824,308.95477359,0.00011199,2]
[331437894,1720407858336,724.45285738,0.00011199,2]
[331437895,1720407883078,756.45013928,0.00011199,2]
[331437896,1720407900337,-402.15763084,0.00012273,2]
[331437897,1720407900360,-164.17812064,0.00012302,2]
[331437898,1720407900384,-348.14003492,0.00012302,2]
[331437899,1720407900406,-348.14886787,0.00012302,2]
[331437900,1720407900428,-203.62913832,0.00012314,2]
[331437901,1720407900451,-439.31997462,0.00012314,2]
[331437902,1720407900474,-250.0,0.00012703,2]
[331437903,1720407900499,-181.62,0.00012727,2]
[331437904,1720407900522,-1000.0,0.00012781,2]
[331437905,1720407900543,-300.0,0.00012797,2]
[331437906,1720407900564,-500.0,0.00012798,2]
[331437907,1720407900586,-250.0,0.00012799,2]
[331437908,1720407900610,-178.26,0.00012812,2]
[331437909,1720407900632,-198.30110838,0.00012915,2]
[331437910,1720407900654,-322.67489827,0.00012915,2]
[331437911,1720407919996,3012.7054188,0.00012915,2]
[331437913,1720407947478,-192.81794387,0.00012915,2]
[331437914,1720407947501,-390807.18205613,0.00013,2]
[331437915,1720408026445,650.46676806,0.00011199,2]
[331438123,1720408064909,999.1001077,0.00011199,2]
[331438130,1720408216688,293.03946391,0.00011199,2]
[331438136,1720408232952,-153.16279109,0.00011688,2]
[331438137,1720408232962,-1909.85,0.00012361,2]
[331438138,1720408233323,-250.0,0.00012367,2]
[331438139,1720408233347,-10000.0,0.00012664,2]
[331438140,1720408233361,-169.43,0.00012715,2]
[331438141,1720408233370,-1000.0,0.00012786,2]
[331438142,1720408233379,-43448.0,0.0001287,2]
[331438143,1720408233388,-20606.5209,0.000129,2]
[331438144,1720408233400,-500.0,0.000129,2]
[331438145,1720408233409,-2500.0,0.000129,2]
[331438146,1720408233418,-535.59904363,0.00012914,2]
[331438147,1720408233428,-360.52059124,0.00012915,2]
[331438148,1720408233437,-322.67489827,0.00012915,2]
[331438149,1720408233447,-166.54687639,0.00012915,2]
[331438150,1720408233456,-42300.57692375,0.00012915,2]
[331438151,1720408233465,-928.26371668,0.00012915,2]
[331438152,1720408233475,-190.10192611,0.0001299,2]
[331438153,1720408233484,-101133.6987368,0.00013,2]
[331438164,1720408238624,-41509.2244985,0.00012715,2]
[331438165,1720408238633,-784940.73505552,0.00013,2]
[331438403,1720408241503,-30596.46730268,0.00013,2]
[331438404,1720408241515,-6523.24676027,0.00013,2]
[331438440,1720408243525,-685.29662423,0.00012302,2]
[331438442,1720408243535,-658.04585548,0.00012664,2]
[331438444,1720408243544,-499229.28904014,0.00013,2]
[331438458,1720408246363,-1053.52459634,0.00013,2]
[331439213,1720408283076,435.84,0.00010809,2]
[331439214,1720408404182,5929.82548944,0.00011199,2]
[331439215,1720408404215,398.61747352,0.00011199,2]
[331439216,1720408404245,7547.9518725,0.00011199,2]
[331439217,1720408404273,14166.34411261,0.00011199,2]
[331439219,1720408418067,28042.73894807,0.00011199,2]
[331439220,1720408461663,570.41351186,0.00011199,2]
[331439222,1720408634588,511.56829991,0.00011199,2]
[331439223,1720408697313,-200.0,0.00011201,2]
[331439224,1720408807345,6000.0,0.00011199,2]
[331439225,1720408932139,265.21676105,0.00011199,2]
[331439226,1720408985092,210.47018692,0.00011199,2]
[331439227,1720408993927,423.8,0.000102,2]
[331439231,1720409012777,6000.0,0.00011199,2]
[331439232,1720409042772,6000.0,0.00011199,2]
[331439233,1720409067170,1338.37604158,0.00011199,2]
[331439234,1720409082497,366.80671841,0.00011199,2]
[331439235,1720409106965,155.56262804,0.00011199,2]
[331439236,1720409123820,421.19172156,0.00011199,2]
[331439238,1720409128841,150.0,0.00027,120]
[331439239,1720409130201,431.26485321,0.00011199,2]
[331439241,1720409160988,157.4823851,0.00025,60]
[331439242,1720409227215,200.0,0.00027,120]
[331439249,1720409350242,2034.83721135,0.00011199,2]
[331439256,1720409364701,720.35067502,0.00011199,2]
[331439259,1720409423321,227.24934482,0.00011199,2]
[331439280,1720409432680,-160.90800127,0.00012102,2]
[331439281,1720409432689,-130.72275947,0.00012111,2]
[331439282,1720409433870,-119.27724053,0.00012111,2]
[331439283,1720409433880,-187.97863638,0.00012202,2]
[331439284,1720409433889,-178.26,0.0001223,2]
[331439285,1720409433899,-297.28970995,0.00012273,2]
[331439286,1720409433909,-253.31719712,0.00012302,2]
[331439287,1720409433919,-176.57593313,0.00012302,2]
[331439288,1720409433928,-155.43526836,0.00012302,4]
[331439289,1720409433937,-202.89097264,0.00012302,2]
[331439290,1720409433947,-90.16102749,0.00012302,2]
[331439291,1720409433959,-277.28263334,0.00012302,2]
[331439292,1720409433969,-183.03869482,0.00012302,2]
[331439293,1720409433979,-238.33519023,0.00012314,2]
[331439294,1720409433988,-249.92310583,0.00012314,2]
[331439295,1720409433998,-1000.0,0.00012315,2]
[331439296,1720409434008,-423.8,0.00012464,2]
[331439297,1720409434018,-16235.0,0.00012488,2]
[331439298,1720409434027,-187.97863637,0.0001253,2]
[331439299,1720409434037,-816.05,0.000126,2]
[331439300,1720409434046,-385.96925274,0.0001263,2]
[331439301,1720409434056,-369.045089,0.00012664,2]
[331439302,1720409434141,-289.00076648,0.00012664,2]
[331439303,1720409434150,-185.74,0.00012699,2]
[331439304,1720409434160,-528.8,0.000127,2]
[331439305,1720409434170,-355.08,0.000127,2]
[331439306,1720409434180,-355.08,0.000127,2]
[331439307,1720409434189,-650.0,0.0001274,2]
[331439308,1720409434199,-285.02,0.0001274,2]
[331439309,1720409434210,-499.99,0.0001274,2]
[331439310,1720409434220,-259.76,0.0001274,2]
[331439311,1720409434231,-1057.32,0.000128,2]
[331439312,1720409434242,-673.7837,0.000128,2]
[331439313,1720409434252,-710.01,0.000128,2]
[331439314,1720409434262,-293.57,0.000128,2]
[331439315,1720409434272,-329.88,0.000128,2]
[331439316,1720409434282,-300.0,0.000128,2]
[331439317,1720409434292,-848.59796929,0.000128,2]
[331439318,1720409434304,-452.17245645,0.000128,2]
[331439326,1720409439524,-408.12957426,0.000128,2]
[331439327,1720409439535,-355.08,0.000128,2]
[331439328,1720409439545,-528.8,0.000128,2]
[331439329,1720409439555,-849.1,0.000128,2]
[331439330,1720409439565,-355.08,0.000128,2]
[331439331,1720409439575,-25000.0,0.000129,2]
[331439332,1720409439586,-300.3502,0.000129,2]
[331439333,1720409439596,-68022.5205,0.000129,2]
[331439334,1720409439606,-1000.0,0.000129,2]
[331439335,1720409439617,-1649.19408,0.000129,2]
[331439336,1720409439627,-2500.0,0.000129,2]
[331439337,1720409439637,-3768.03030137,0.000129,2]
[331439338,1720409439647,-174.6495878,0.00012915,2]
[331439339,1720409439657,-322.67489827,0.00012915,2]
[331439340,1720409439666,-173.06446407,0.00012915,2]
[331439341,1720409439676,-815.90914386,0.00012915,2]
[331439342,1720409439686,-180.48788197,0.00012915,2]
[331439343,1720409439696,-1089.89667192,0.00012915,2]
[331439344,1720409439706,-39632.42757728,0.00012999,2]
[331439345,1720409439715,-637815.34017472,0.00013,2]
[331439449,1720409440876,-650.0,0.00013,2]
[331439451,1720409440889,-41358.24254163,0.00013,2]
[331439454,1720409440905,-72091.83589408,0.00013,2]
[331439633,1720409444704,-1036496.49173326,0.00013,2]
[331439634,1720409445892,-578.13019179,0.00013,2]
[331439641,1720409447678,-263.08156258,0.00012314,2]
[331439642,1720409447691,-78.25921001,0.00012314,2]
[331439643,1720409447700,-4526.35318827,0.000128,2]
[331439644,1720409447710,-74286.49682332,0.00013,2]
[331439645,1720409447951,-1351.78790995,0.00013,2]